bitfinex-derivatives/quotes_BTCF0:USTF0_20251230
["timestamp","ask_amount","ask_price","bid_price","bid_amount"]
[1767082647473,0.0113538,88189.0,88175.0,0.16755935]
[1767082647684,0.0113544,88184.0,88176.0,5e-08]
[1767082647985,0.0113544,88184.0,88160.0,0.03001715]
[1767082648182,0.0113545,88184.0,88161.0,0.15452]
[1767082648480,0.00017004,88181.0,88162.0,0.21369016]
[1767082648673,0.0113554,88176.0,88162.0,0.10031598]
[1767082648878,0.00017004,88181.0,88162.0,0.10031598]
[1767082648879,0.00017004,88181.0,88163.0,0.15452]
[1767082649575,0.00017004,88181.0,88164.0,0.11341404]
[1767082650078,0.0113554,88177.0,88163.0,0.15452]
[1767082650388,0.1534256,88173.0,88142.0,8.093e-05]
[1767082650584,0.058,88172.0,88142.0,8.093e-05]
[1767082650889,0.0113584,88154.0,88143.0,0.11341726]
[1767082651189,0.00017014,88157.0,88142.0,8.093e-05]
[1767082651791,0.00017014,88157.0,88143.0,0.0113596]
[1767082651995,1.4e-07,88157.0,88143.0,0.0113596]
[1767082652382,1.4e-07,88157.0,88146.0,0.0113592]
[1767082652782,1.4e-07,88157.0,88142.0,8.093e-05]
[1767082654391,1.4e-07,88157.0,88143.0,0.0113596]
[1767082655092,1.4e-07,88157.0,88143.0,0.0113597]
[1767082656390,0.09648,88182.0,88161.0,0.0113573]
[1767082656596,0.09648,88183.0,88161.0,0.0113573]
[1767082656793,0.09648,88183.0,88158.0,0.09648]
[1767082656989,0.0113547,88182.0,88158.0,0.09648]
[1767082657385,0.00017014,88179.0,88161.0,0.00017014]
[1767082658185,0.00017014,88179.0,88162.0,0.0113572]
[1767082658390,4e-08,88179.0,88170.0,0.0113562]
[1767082658586,4e-08,88179.0,88177.0,0.0113552]
[1767082659690,4e-08,88179.0,88178.0,0.01279963]
[1767082660994,0.09648,88202.0,88178.0,0.12620595]
[1767082661202,0.09648,88202.0,88180.0,0.1534256]
[1767082661499,0.09648,88202.0,88178.0,0.11340632]
[1767082661500,0.09648,88202.0,88181.0,0.16723963]
[1767082661698,0.1078322,88202.0,88182.0,0.01279963]
[1767082661891,0.1078322,88202.0,88183.0,0.07075963]
[1767082662199,0.00017014,88201.0,88184.0,0.01279963]
[1767082662394,0.00017014,88201.0,88185.0,0.01279963]
[1767082662590,0.00017014,88201.0,88186.0,3e-08]
[1767082662800,0.0113529,88196.0,88183.0,0.00017014]
[1767082663098,0.0113538,88189.0,88166.0,0.1763373]
[1767082663301,0.0113538,88189.0,88167.0,0.05796]
[1767082663892,0.09648,88192.0,88162.0,0.0798573]
[1767082664187,0.00017014,88186.0,88168.0,0.00017014]
[1767082664386,0.00017014,88186.0,88161.0,0.1378173]
[1767082664387,0.0113554,88176.0,88154.0,0.0798573]
[1767082664593,0.0113554,88176.0,88157.0,0.05796]
[1767082664798,0.0113554,88176.0,88155.0,0.05792]
[1767082664996,0.09648,88178.0,88155.0,0.0556503]
[1767082665197,0.09648,88178.0,88156.0,0.011358]
[1767082665794,0.09648,88178.0,88159.0,0.0113575]
[1767082666893,0.09648,88178.0,88155.0,0.0670084]
[1767082667095,0.09648,88178.0,88155.0,0.0556503]
[1767082667293,0.09648,88178.0,88164.0,0.06003328]
[1767082668501,0.09648,88178.0,88166.0,0.06003328]
[1767082669997,0.0113553,88177.0,88166.0,0.06003328]
[1767082670203,0.0113553,88177.0,88159.0,0.0798573]
[1767082670896,0.09648,88178.0,88158.0,0.0798573]
[1767082671096,0.0113565,88168.0,88149.0,0.09977263]
[1767082671297,0.0113568,88166.0,88148.0,0.09977263]
[1767082671802,0.0113568,88166.0,88147.0,0.09648]
[1767082672103,0.00017014,88167.0,88147.0,0.09648]
[1767082672304,0.0113568,88166.0,88147.0,0.09648]
[1767082672695,0.00017014,88167.0,88143.0,0.05788]
[1767082672696,0.0113572,88163.0,88143.0,0.05788]
[1767082672895,0.0113581,88156.0,88143.0,0.05788]
[1767082673105,0.15436,88158.0,88131.0,3e-08]
[1767082673309,0.0567788,88174.0,88118.0,0.14027482]
[1767082673310,0.00017014,88153.0,88118.0,0.14027482]
[1767082673497,0.0113597,88143.0,88115.0,0.0113633]
[1767082673697,0.1544,88142.0,88116.0,0.05792]
[1767082673899,0.1544,88142.0,88116.0,0.17138165]
[1767082674196,8.093e-05,88141.0,88116.0,0.17138165]
[1767082674697,8.093e-05,88141.0,88118.0,0.0113628]
[1767082674899,0.00017014,88138.0,88123.0,0.04008704]
[1767082675111,0.00017014,88138.0,88124.0,0.01170976]
[1767082675406,0.00017014,88138.0,88125.0,0.01170976]
[1767082675606,0.00017014,88138.0,88126.0,0.01170976]
[1767082675805,0.00017014,88138.0,88127.0,0.01170976]
[1767082676001,0.0113582,88155.0,88128.0,0.02307136]
[1767082676205,0.05792,88149.0,88129.0,0.01170976]
[1767082676404,0.0113575,88161.0,88130.0,0.01170976]
[1767082676709,0.0113579,88157.0,88133.0,0.04008704]
[1767082676904,0.0113579,88157.0,88134.0,0.01170976]
[1767082677099,0.00017014,88154.0,88136.0,0.00017014]
[1767082677299,0.00017014,88154.0,88137.0,0.01170088]
[1767082677500,0.00017014,88154.0,88138.0,0.01170088]
[1767082677699,0.00017014,88154.0,88139.0,0.01170088]
[1767082677900,0.09263071,88224.0,88150.0,0.04008704]
[1767082678105,0.0113529,88196.0,88165.0,0.04008704]
[1767082678307,0.0113529,88196.0,88169.0,0.05144334]
[1767082678611,0.0113529,88196.0,88166.0,0.16614088]
[1767082678612,0.09652,88205.0,88170.0,0.05178792]
[1767082678804,0.00017014,88196.0,88179.0,0.01152514]
[1767082679011,0.00017014,88196.0,88180.0,0.06966088]
[1767082679200,0.00017014,88196.0,88181.0,0.01170088]
[1767082679400,0.00017014,88196.0,88182.0,0.01170088]
[1767082679600,0.00017014,88196.0,88183.0,0.01170088]
[1767082679909,0.00017014,88196.0,88184.0,0.01170088]
[1767082680205,0.0113486,88229.0,88185.0,0.01170088]
[1767082680409,0.15448,88228.0,88186.0,0.01168469]
[1767082680611,0.15448,88228.0,88183.0,0.0113544]
[1767082680801,0.15448,88228.0,88184.0,0.01168334]
[1767082681001,0.0113513,88208.0,88185.0,0.05177038]
[1767082681201,0.15444,88207.0,88186.0,0.01168334]
[1767082681401,0.01152184,88205.0,88188.0,0.00017014]
[1767082681603,0.01152184,88205.0,88189.0,0.01168334]
[1767082681803,0.01152184,88205.0,88190.0,0.01168334]
[1767082681998,0.0113523,88201.0,88188.0,0.00017014]
[1767082683408,0.00017014,88205.0,88182.0,0.0113546]
[1767082683612,0.0113513,88208.0,88182.0,0.0113546]
[1767082683613,0.0113513,88208.0,88183.0,0.01167764]
[1767082683813,0.0113513,88208.0,88184.0,0.01167764]
[1767082684014,0.0113513,88208.0,88185.0,0.01167764]
[1767082684213,0.0113513,88208.0,88186.0,0.01167764]
[1767082684406,0.00017014,88205.0,88188.0,0.00017014]
[1767082687814,0.01152184,88205.0,88188.0,0.00017014]
[1767082688606,0.00017014,88205.0,88188.0,0.00017014]
[1767082690612,0.0113519,88204.0,88188.0,0.00017014]
[1767082691217,0.0113523,88201.0,88188.0,0.00017014]
[1767082692311,0.09648,88204.0,88188.0,0.00017014]
[1767082692821,0.011352,88203.0,88188.0,0.00017014]
[1767082693523,0.09648,88204.0,88188.0,0.00017014]
[1767082693920,0.1078319,88204.0,88188.0,0.00017014]
[1767082694517,0.09648,88204.0,88188.0,0.00017014]
[1767082694724,0.011352,88203.0,88188.0,0.00017014]
[1767082695628,0.09648,88204.0,88176.0,0.04008704]
[1767082695828,0.0113533,88193.0,88177.0,0.09648]
[1767082696212,0.0113533,88193.0,88173.0,0.0578]
[1767082696418,0.0113533,88193.0,88174.0,0.01167011]
[1767082696617,0.0113533,88193.0,88175.0,0.00017014]
[1767082696818,0.0113532,88194.0,88175.0,0.00017014]
[1767082699442,0.0113534,88192.0,88171.0,0.011356]
[1767082699842,0.0113534,88192.0,88170.0,0.15428]
[1767082700044,0.0113538,88189.0,88167.0,0.09648]
[1767082700241,0.0113538,88189.0,88168.0,0.01167115]
[1767082700441,0.0113538,88189.0,88168.0,0.11339861]
[1767082700746,0.00017014,88187.0,88168.0,0.11339861]
[1767082702139,0.00017014,88187.0,88166.0,0.05776]
[1767082702340,0.00017014,88187.0,88167.0,0.01167238]
[1767082702540,0.00017014,88187.0,88167.0,0.11340761]
[1767082703240,0.00017014,88187.0,88167.0,0.12476411]
[1767082703542,0.00017014,88187.0,88168.0,0.01168032]
[1767082703742,0.00017014,88187.0,88158.0,0.13656704]
[1767082703743,0.05776,88186.0,88158.0,0.13656704]
[1767082703943,0.0113543,88185.0,88161.0,0.0113573]
[1767082704140,0.0113547,88182.0,88158.0,0.13656704]
[1767082704338,0.09648,88181.0,88163.0,0.011357]
[1767082704545,0.00017014,88187.0,88169.0,0.0113562]
[1767082704848,0.00017014,88187.0,88173.0,0.0113558]
[1767082705348,0.00017014,88187.0,88169.0,0.0113562]
[1767082705748,0.00017014,88187.0,88165.0,0.12477148]
[1767082705949,0.00017014,88187.0,88165.0,0.0113568]
[1767082706148,0.00017014,88187.0,88166.0,0.11340697]
[1767082706545,0.00017014,88187.0,88165.0,0.05144384]
[1767082706745,0.0113546,88183.0,88166.0,0.11340697]
[1767082706946,0.011355,88180.0,88166.0,0.11340697]
[1767082707147,0.011355,88180.0,88157.0,0.0113578]
[1767082707148,0.011355,88180.0,88167.0,0.04008704]
[1767082707343,0.011355,88180.0,88166.0,0.04008704]
[1767082707851,0.011355,88180.0,88164.0,0.04008704]
[1767082708544,0.011355,88180.0,88163.0,0.09780704]
[1767082708745,0.00017014,88187.0,88164.0,0.04008704]
[1767082708944,0.00017014,88187.0,88166.0,0.04008704]
[1767082709553,0.0113542,88186.0,88165.0,0.04008704]
[1767082709943,0.0113546,88183.0,88165.0,0.04008704]
[1767082710145,0.011355,88180.0,88164.0,0.04008704]
[1767082710453,0.0113544,88184.0,88163.0,0.09780704]
[1767082710656,0.0113544,88184.0,88164.0,0.04008704]
[1767082710850,0.01152424,88187.0,88165.0,0.04008704]
[1767082711050,0.0113544,88185.0,88166.0,0.04008704]
[1767082711351,0.0113548,88181.0,88165.0,0.04008704]
[1767082711549,0.0113548,88181.0,88164.0,0.04008704]
[1767082712050,0.00017014,88181.0,88164.0,0.00017014]
[1767082712249,0.05776,88180.0,88149.0,0.05990571]
[1767082712451,0.05776,88180.0,88151.0,0.0113586]
[1767082712648,0.05776,88180.0,88152.0,0.09648]
[1767082712848,0.0113564,88169.0,88153.0,0.05776]
[1767082713045,0.0113564,88169.0,88152.0,0.09648]
[1767082713046,0.0113565,88168.0,88148.0,0.0001057]
[1767082713250,0.0113564,88169.0,88149.0,0.15424]
[1767082713554,0.0113564,88169.0,88149.0,0.11342305]
[1767082713742,0.0113573,88162.0,88148.0,0.0001057]
[1767082713949,0.0113574,88161.0,88148.0,0.0001057]
[1767082714143,0.09665014,88163.0,88148.0,0.0001057]
[1767082714452,0.09665014,88163.0,88140.0,0.05990571]
[1767082714646,0.09665014,88163.0,88141.0,0.05990571]
[1767082714854,0.0113587,88151.0,88133.0,0.07994607]
[1767082715053,0.01152884,88151.0,88132.0,0.07994607]
[1767082715255,0.0001057,88150.0,88128.0,0.13770607]
[1767082715457,0.0001057,88150.0,88128.0,0.05776]
[1767082715952,0.011359,88149.0,88128.0,0.05776]
[1767082716649,0.0113595,88145.0,88123.0,0.05776]
[1767082716852,0.0113595,88145.0,88122.0,0.05776]
[1767082717053,0.0001057,88150.0,88123.0,0.11345779]
[1767082717253,0.0001057,88150.0,88122.0,0.05776]
[1767082717757,0.0001057,88150.0,88124.0,0.0113621]
[1767082718965,0.0001057,88150.0,88125.0,0.05776]
[1767082719351,0.0113589,88149.0,88125.0,0.05776]
[1767082720450,0.0001057,88150.0,88126.0,0.11345972]
[1767082720650,0.00028,88158.0,88134.0,0.0113607]
[1767082720855,0.00028,88158.0,88126.0,0.11345972]
[1767082720856,0.09652,88157.0,88136.0,0.0113605]
[1767082721556,0.0113563,88170.0,88138.0,0.00017014]
[1767082721762,0.0113565,88168.0,88138.0,0.0113603]
[1767082722055,0.10776,88169.0,88138.0,0.0113603]
[1767082722056,0.0113568,88166.0,88138.0,0.0113603]
[1767082722359,0.0113572,88163.0,88138.0,0.0113603]
[1767082722561,0.00017014,88159.0,88142.0,0.00017014]
[1767082723056,0.0578,88158.0,88142.0,0.00017014]
[1767082723363,0.09652,88157.0,88134.0,0.0578]
[1767082723757,0.011358,88156.0,88134.0,0.0578]
[1767082723955,0.011358,88156.0,88130.0,0.0578]
[1767082724263,0.00017014,88152.0,88134.0,0.00017014]
[1767082724655,0.01152864,88152.0,88134.0,0.00017014]
[1767082724967,0.00017014,88152.0,88122.0,0.09652]
[1767082725156,0.00017014,88152.0,88123.0,0.0578]
[1767082725464,0.00017014,88152.0,88123.0,0.171252]
[1767082726365,0.00017014,88152.0,88133.0,0.0113608]
[1767082726568,0.15432,88151.0,88133.0,0.0113608]
[1767082726765,0.00017014,88152.0,88133.0,0.0113608]
[1767082727065,0.15432,88151.0,88133.0,0.0113608]
[1767082727261,0.15432,88151.0,88128.0,0.0113616]
[1767082728466,0.15432,88151.0,88116.0,0.0578]
[1767082728669,0.0113589,88149.0,88116.0,0.0578]
[1767082728854,0.0113589,88149.0,88118.0,0.1134565]
[1767082729061,0.0113589,88149.0,88116.0,0.0578]
[1767082729258,0.0113589,88149.0,88117.0,0.11346423]
[1767082729466,0.0113601,88140.0,88118.0,0.0113628]
[1767082729761,0.15428,88139.0,88121.0,0.0113624]
[1767082729967,0.15428,88138.0,88121.0,0.0113624]
[1767082730169,0.09652,88137.0,88121.0,0.0113624]
[1767082731058,0.011359,88149.0,88124.0,0.011362]
[1767082731254,0.0113593,88146.0,88124.0,0.011362]
[1767082731567,0.0113598,88143.0,88120.0,0.0113626]
[1767082731964,0.0113598,88143.0,88116.0,0.05776]
[1767082731965,0.0113603,88139.0,88116.0,0.05776]
[1767082732172,0.0113606,88136.0,88110.0,0.0113638]
[1767082732469,0.0113606,88136.0,88112.0,0.0113636]
[1767082732470,0.00017014,88132.0,88112.0,0.0113636]
[1767082732873,0.01153124,88132.0,88112.0,0.0113636]
[1767082733066,0.01153124,88132.0,88109.0,0.05776]
[1767082733269,0.00017014,88132.0,88102.0,0.0113649]
[1767082733571,0.011362,88126.0,88103.0,0.05776]
[1767082733766,0.0113622,88124.0,88101.0,0.011365]
[1767082733965,0.0113622,88124.0,88103.0,0.05776]
[1767082734170,0.15428,88125.0,88101.0,0.011365]
[1767082734762,0.00017014,88132.0,88101.0,0.011365]
[1767082734763,0.00017014,88132.0,88120.0,0.0113626]
[1767082734968,0.09652,88139.0,88113.0,0.05776]
[1767082735167,0.0984,88142.0,88114.0,0.15428]
[1767082735358,0.0984,88142.0,88117.0,0.011363]
[1767082735564,0.0984,88142.0,88112.0,0.0113636]
[1767082735769,0.0984,88142.0,88115.0,0.0113632]
[1767082735968,0.00017014,88137.0,88120.0,0.00017014]
[1767082736163,0.0113609,88134.0,88120.0,0.00017014]
[1767082736371,0.00017014,88137.0,88116.0,0.011363]
[1767082736673,0.00017014,88137.0,88119.0,0.0113627]
[1767082736868,0.15428,88136.0,88119.0,0.0113627]
[1767082737569,0.00017014,88137.0,88122.0,0.0113623]
[1767082737776,0.00017014,88137.0,88108.0,0.05776]
[1767082738071,0.0113606,88136.0,88111.0,0.0113637]
[1767082738767,0.0113613,88131.0,88109.0,0.05776]
[1767082738970,0.0113613,88131.0,88107.0,0.0113643]
[1767082739164,0.00017014,88137.0,88088.0,0.18130643]
[1767082739165,0.0113609,88134.0,88103.0,0.0113648]
[1767082739369,0.00017014,88137.0,88106.0,0.0113644]
[1767082739573,0.0113608,88135.0,88109.0,0.011364]
[1767082739772,0.0113606,88136.0,88112.0,0.0113636]
[1767082740074,0.00017014,88137.0,88103.0,0.15428]
[1767082740075,0.15428,88135.0,88115.0,0.0113632]
[1767082740571,0.15428,88135.0,88103.0,0.15428]
[1767082740572,0.15428,88135.0,88121.0,0.0113624]
[1767082740764,0.00017014,88137.0,88121.0,0.0113624]
[1767082740966,0.00017014,88137.0,88124.0,0.011362]
[1767082741261,0.3192,88180.0,88122.0,0.00017014]
[1767082741462,0.0113587,88151.0,88125.0,0.0113619]
[1767082741677,0.0113575,88160.0,88134.0,0.0113608]
[1767082741973,0.05776,88160.0,88134.0,0.0113608]
[1767082742274,0.01152824,88156.0,88138.0,0.00017014]
[1767082742473,0.0113583,88154.0,88138.0,0.00017014]
[1767082743276,0.09656,88155.0,88138.0,1.4e-07]
[1767082743975,0.0113588,88151.0,88138.0,1.4e-07]
[1767082744276,0.0113589,88149.0,88138.0,1.4e-07]
[1767082746075,0.05776,88150.0,88121.0,0.09656]
[1767082746267,0.05776,88150.0,88122.0,0.0113624]
[1767082746268,0.0113593,88146.0,88122.0,0.0113624]
[1767082746573,0.09652,88145.0,88122.0,0.0113624]
[1767082746869,0.0113596,88144.0,88121.0,0.09652]
[1767082747068,0.09652,88145.0,88121.0,0.09652]
[1767082747069,0.0113601,88141.0,88121.0,0.09652]
[1767082747266,0.1078794,88145.0,88121.0,0.1078824]
[1767082747670,0.1078794,88145.0,88121.0,0.0113624]
[1767082748373,0.09652,88145.0,88124.0,0.0113621]
[1767082748879,0.0113596,88144.0,88120.0,0.09652]
[1767082749082,0.0113602,88139.0,88120.0,0.09652]
[1767082749268,0.00017014,88138.0,88120.0,0.09652]
[1767082749865,0.09652,88145.0,88131.0,0.0113611]
[1767082750076,0.05772,88151.0,88131.0,0.0113611]
[1767082750978,0.00017014,88150.0,88132.0,0.00017014]
[1767082751576,0.14043747,88214.0,88140.0,0.15319674]
[1767082751874,0.0113517,88206.0,88177.0,0.0113553]
[1767082752077,0.09652,88206.0,88181.0,0.0113547]
[1767082752373,0.09652,88206.0,88185.0,0.0113542]
[1767082752578,0.00017014,88204.0,88187.0,0.00017014]
[1767082756581,0.01152204,88204.0,88187.0,0.00017014]
[1767082759077,0.01152194,88204.0,88187.0,0.00017014]
[1767082760773,0.00017014,88204.0,88187.0,0.00017014]
[1767082761582,0.0113525,88199.0,88178.0,0.09652]
[1767082761780,0.0690325,88199.0,88178.0,0.09652]
[1767082761981,0.0690325,88199.0,88179.0,0.1216]
[1767082762176,0.05768,88199.0,88179.0,0.1216]
[1767082762381,0.0113526,88198.0,88179.0,0.1216]
[1767082762683,0.0113526,88198.0,88180.0,0.00017014]
[1767082763288,0.0113524,88200.0,88180.0,0.00017014]
[1767082763981,0.15416,88203.0,88180.0,0.00017014]
[1767082764187,0.0113521,88202.0,88181.0,0.11339154]
[1767082764489,0.0113521,88202.0,88180.0,0.00017014]
[1767082765490,0.15416,88203.0,88180.0,0.00017014]
[1767082765491,0.0113526,88198.0,88180.0,0.00017014]
[1767082767987,0.15416,88203.0,88181.0,0.1216]
[1767082768284,0.15416,88203.0,88169.0,0.27576]
[1767082768684,0.15416,88203.0,88169.0,0.23499282]
[1767082769194,0.15416,88203.0,88169.0,0.23039282]
[1767082769591,0.0113534,88192.0,88169.0,0.23039282]
[1767082769788,0.0113537,88190.0,88169.0,0.117]
[1767082770893,0.0113541,88186.0,88169.0,0.117]
[1767082771086,0.01152424,88186.0,88168.0,0.17468]
[1767082771588,0.0689933,88193.0,88167.0,0.05764]
[1767082771794,0.09648,88192.0,88167.0,0.05764]
[1767082772294,0.0113536,88191.0,88167.0,0.0689965]
[1767082772493,0.00017014,88188.0,88170.0,0.01152624]
[1767082773582,0.00017014,88188.0,88170.0,0.00017014]
[1767082774091,0.00017014,88188.0,88170.0,0.01152624]
[1767082774897,0.00017014,88188.0,88170.0,0.00017014]
[1767082775797,0.01152414,88188.0,88170.0,0.00017014]
[1767082775989,0.00017014,88188.0,88170.0,0.00017014]
[1767082777293,0.00017014,88188.0,88171.0,0.011356]
[1767082777693,0.00017014,88188.0,88172.0,0.04007202]
[1767082778094,0.00017014,88188.0,88174.0,0.04007202]
[1767082778698,0.00017014,88188.0,88173.0,0.04007202]
[1767082779394,0.00017014,88188.0,88176.0,0.04007202]
[1767082780199,0.00017014,88188.0,88179.0,0.04007202]
[1767082780496,1.4e-07,88188.0,88177.0,0.0113553]
[1767082780699,0.09648,88199.0,88181.0,0.0113547]
[1767082780999,0.1654321,88202.0,88182.0,0.04007202]
[1767082781202,0.1654321,88202.0,88186.0,0.04007202]
[1767082781203,0.0113526,88198.0,88186.0,0.04007202]
[1767082781390,0.15408,88202.0,88176.0,0.06010803]
[1767082781391,0.0113538,88189.0,88176.0,0.06010803]
[1767082781590,0.15319674,88200.0,88174.0,0.06010803]
[1767082781797,0.0113543,88185.0,88173.0,0.11770803]
[1767082782192,0.0113543,88185.0,88173.0,0.06010803]
[1767082782596,0.0113543,88185.0,88161.0,0.17005116]
[1767082782597,0.0113543,88185.0,88172.0,0.06010803]
[1767082782802,0.0113543,88185.0,88171.0,0.06010803]
[1767082783188,0.15408,88192.0,88170.0,7e-08]
[1767082783702,0.0113554,88177.0,88170.0,7e-08]
[1767082783906,0.0113548,88181.0,88170.0,7e-08]
[1767082785704,0.0113552,88178.0,88170.0,7e-08]
[1767082785904,0.0113546,88183.0,88170.0,7e-08]
[1767082786906,0.011355,88180.0,88170.0,7e-08]
[1767082787104,0.15408,88192.0,88170.0,7e-08]
[1767082787304,0.0113565,88168.0,88145.0,0.07994607]
[1767082787499,0.0113565,88168.0,88128.0,0.117]
[1767082787500,0.15404,88169.0,88142.0,0.0113597]
[1767082787803,0.15404,88168.0,88147.0,0.124768]
[1767082787998,0.15404,88169.0,88147.0,0.0113591]
[1767082788398,0.00017014,88167.0,88147.0,0.0113591]
[1767082789702,0.00017014,88167.0,88144.0,0.09122275]
[1767082789902,0.00017014,88167.0,88143.0,0.05756]
[1767082790102,0.00017014,88167.0,88145.0,0.11343398]
[1767082790302,0.00017014,88167.0,88143.0,0.05756]
[1767082790503,0.00017014,88167.0,88144.0,0.11343591]
[1767082790812,0.0113568,88166.0,88144.0,0.11343591]
[1767082790998,0.0113568,88166.0,88143.0,0.13750607]
[1767082790999,0.0113568,88166.0,88143.0,0.07994607]
[1767082791201,0.00017014,88167.0,88143.0,0.07994607]
[1767082791202,0.0113572,88163.0,88143.0,0.07994607]
[1767082791603,0.0113577,88159.0,88141.0,0.07994607]
[1767082791907,0.0113579,88157.0,88140.0,0.07994607]
[1767082792098,0.05756,88156.0,88136.0,0.05756]
[1767082794015,0.05756,88156.0,88138.0,0.0113603]
[1767082796917,0.05756,88156.0,88136.0,0.05756]
[1767082797119,0.0113591,88148.0,88127.0,0.09652]
[1767082797319,0.00017014,88146.0,88128.0,0.05752]
[1767082798718,0.00017014,88146.0,88127.0,0.0113616]
[1767082798925,0.00017014,88146.0,88128.0,0.05752]
[1767082799117,0.01152954,88146.0,88128.0,0.05752]
[1767082799313,0.0113598,88142.0,88125.0,0.09183406]
[1767082799619,0.0113597,88143.0,88124.0,0.05752]
[1767082800221,0.0113602,88139.0,88120.0,0.09173022]
[1767082800522,0.0113602,88139.0,88120.0,0.05752]
[1767082800820,0.0113597,88143.0,88120.0,0.05752]
[1767082801016,0.0113597,88143.0,88121.0,0.0113625]
[1767082801318,0.05752,88145.0,88121.0,0.0113625]
[1767082802011,0.0113596,88144.0,88120.0,0.05752]
[1767082802206,0.05752,88145.0,88110.0,0.07994607]
[1767082802519,0.0113598,88142.0,88113.0,0.0113635]
[1767082802704,0.0113605,88137.0,88113.0,0.0113635]
[1767082803015,0.0113609,88134.0,88111.0,0.117]
[1767082803218,0.0113612,88132.0,88114.0,0.06014852]
[1767082803520,0.15404,88131.0,88112.0,0.06014852]
[1767082803919,0.0113615,88130.0,88112.0,0.06014852]
[1767082804115,0.15404,88131.0,88110.0,0.117]
[1767082804316,0.00017014,88129.0,88110.0,0.117]
[1767082805519,0.011362,88126.0,88099.0,0.06025416]
[1767082805819,0.00017014,88129.0,88099.0,0.00010564]
[1767082806023,0.0113623,88123.0,88100.0,0.05752]
[1767082806523,0.0113628,88120.0,88099.0,0.00010564]
[1767082806719,0.0113634,88115.0,88099.0,0.00010564]
[1767082806924,0.09652,88114.0,88099.0,0.00010564]
[1767082807826,0.0113636,88113.0,88099.0,0.00010564]
[1767082808122,0.011364,88110.0,88088.0,0.01363717]
[1767082808321,0.00017024,88108.0,88093.0,0.011366]
[1767082808623,0.00017024,88108.0,88096.0,0.0113656]
[1767082808824,0.00017024,88108.0,88089.0,0.05752]
[1767082809226,0.00010564,88107.0,88089.0,0.05752]
[1767082809419,0.00010564,88107.0,88088.0,0.00227047]
[1767082809724,0.00010564,88107.0,88088.0,0.00222047]
[1767082810819,0.09652,88119.0,88097.0,0.0113655]
[1767082811014,0.15404,88118.0,88097.0,0.0113655]
[1767082811918,0.00017024,88116.0,88100.0,0.0113652]
[1767082813325,0.22451912,88160.0,88100.0,0.0113652]
[1767082813326,0.0113562,88170.0,88107.0,0.0113642]
[1767082813523,0.0113562,88170.0,88101.0,0.21005707]
[1767082813524,0.09656,88149.0,88101.0,0.21005707]
[1767082813721,0.11208,88148.0,88112.0,0.0113636]
[1767082813936,0.0113608,88135.0,88110.0,0.09656]
[1767082814224,0.0113612,88132.0,88108.0,0.05752]
[1767082814427,0.011362,88126.0,88111.0,0.00017024]
[1767082814626,0.0113627,88120.0,88094.0,0.0113659]
[1767082814829,0.0113627,88120.0,88095.0,0.15408]
[1767082815222,0.0113627,88120.0,88096.0,0.11349835]
[1767082815424,0.0113621,88124.0,88098.0,0.0113655]
[1767082815727,0.0113621,88124.0,88102.0,0.00017024]
[1767082817434,0.15408,88125.0,88102.0,0.00017024]
[1767082817821,0.0113632,88116.0,88102.0,0.00017024]
[1767082818222,0.15408,88125.0,88102.0,0.00017024]
[1767082818433,0.0113635,88113.0,88102.0,0.00017024]
[1767082818833,0.00017024,88129.0,88102.0,0.00017024]
[1767082818834,0.00017024,88129.0,88103.0,0.09656]
[1767082819035,0.01153174,88129.0,88103.0,0.1079247]
[1767082819228,0.01153174,88129.0,88104.0,0.05752]
[1767082819434,0.01153174,88129.0,88105.0,0.1654445]
[1767082820619,0.01153174,88129.0,88105.0,0.0113645]
[1767082821239,0.0568095,88127.0,88049.0,0.0113717]
[1767082821533,0.0568171,88115.0,88048.0,0.05768]
[1767082821737,0.0113674,88084.0,88050.0,0.0113716]
[1767082821930,0.0113676,88082.0,88051.0,0.15424]
[1767082822129,0.05768,88083.0,88051.0,0.15424]
[1767082822130,0.00017035,88075.0,88051.0,0.15424]
[1767082822332,0.00012123,88074.0,88051.0,0.15424]
[1767082822535,0.00012123,88074.0,88051.0,0.15419]
[1767082823326,7.123e-05,88074.0,88051.0,0.15419]
[1767082824438,0.0113688,88073.0,88051.0,0.15419]
[1767082825126,7.123e-05,88074.0,88052.0,0.11355571]
[1767082826038,0.0113693,88069.0,88052.0,0.11355571]
[1767082826235,0.0113703,88061.0,88043.0,0.05768]
[1767082826422,7.123e-05,88074.0,88043.0,0.05768]
[1767082826624,7.123e-05,88074.0,88044.0,0.11355506]
[1767082826830,0.0113702,88062.0,88044.0,0.11355506]
[1767082827227,0.0113705,88059.0,88045.0,0.15424]
[1767082827639,0.00017035,88061.0,88031.0,0.11356022]
[1767082827640,0.0113711,88055.0,88031.0,0.11356022]
[1767082827828,0.0113711,88055.0,88032.0,0.15424]
[1767082828227,0.01154065,88061.0,88032.0,0.15424]
[1767082829230,0.0113708,88057.0,88033.0,0.05768]
[1767082829439,0.0113716,88051.0,88034.0,0.15428]
[1767082829734,0.0113716,88051.0,88035.0,0.05768]
[1767082829935,0.0113713,88054.0,88035.0,0.05768]
[1767082830132,0.0113712,88054.0,88028.0,0.00227202]
[1767082830329,0.0113712,88054.0,88029.0,0.15428]
[1767082830528,7.123e-05,88056.0,88029.0,0.15428]
[1767082830529,7.123e-05,88056.0,88029.0,0.1656544]
[1767082831540,7.123e-05,88056.0,88030.0,0.1135815]
[1767082831739,1.23e-06,88056.0,88030.0,0.1135815]
[1767082831935,0.0113711,88055.0,88028.0,0.00227202]
[1767082832238,0.0113724,88045.0,88029.0,0.0966]
[1767082832837,0.0113718,88050.0,88029.0,0.0966]
[1767082833033,0.0966,88054.0,88029.0,0.0966]
[1767082833940,0.0966,88054.0,88030.0,0.0113742]
[1767082834528,0.0966,88054.0,88029.0,0.0966]
[1767082835130,0.0113719,88048.0,88028.0,0.00227202]
[1767082835335,0.0113719,88048.0,88029.0,0.15428]
[1767082835538,0.0966,88054.0,88030.0,0.05768]
[1767082835839,0.0113722,88047.0,88030.0,0.05768]
[1767082836038,0.0113722,88047.0,88028.0,0.00227202]
[1767082836244,0.011374,88032.0,88019.0,0.00013992]
[1767082836542,0.00017035,88034.0,88019.0,0.00013992]
[1767082837042,0.0113739,88033.0,88019.0,0.00013992]
[1767082838243,0.0113744,88029.0,88019.0,0.00013992]
[1767082838544,0.0113744,88029.0,88008.0,0.05768]
[1767082839242,0.05768,88028.0,88000.0,0.05768]
[1767082839441,0.00011996,88027.0,88000.0,0.05768]
[1767082839641,0.0113759,88018.0,88000.0,0.05768]
[1767082839842,0.09664,88021.0,88000.0,0.05768]
[1767082840344,0.1080155,88021.0,88000.0,0.05768]
[1767082840741,0.00011996,88027.0,88002.0,0.0113779]
[1767082841546,0.00011996,88027.0,88006.0,0.0113773]
[1767082841847,0.00011996,88027.0,88002.0,0.0113779]